[Event "World Senior chT-50 2019"]
[Site "Rhodes"]
[Date "2019.04.21"]
[Round "6.39"]
[White "MacElligott, Gerard"]
[Black "Schulz, Petra"]
[Result "1/2-1/2"]
[ECO "E60"]
[WhiteElo "2025"]
[BlackElo "2051"]
[Annotator "NA"]
[PlyCount "212"]
[EventDate "2019.04.16"]
[EventType "team-tourn"]
[EventCountry "GRE"]
[SourceTitle "playchess.com"]
[Source "ChessBase"]
[SourceQuality "1"]
[WhiteTeam "Ireland"]
[BlackTeam "Germany"]
[WhiteTeamCountry "IRL"]
[BlackTeamCountry "GER"]
[TimeControl "40/5400+30:1800+30"]

1. d4 {[%emt 0:00:00]} Nf6 {[%emt 0:00:00]} 2. c4 {[%emt 0:00:00]} g6 {[%emt 0:00:00]} 3. g3 {[%emt 0:00:18]} Bg7 {[%emt 0:00:02]} 4. Bg2 {[%emt 0:00:08]} d6 {[%emt 0:00:48]} 5. Nf3 {[%emt 0:00:13]} O-O {[%emt 0:00:16]} 6. O-O {[%emt 0:00:26]} Nbd7 {[%emt 0:00:10]} 7. Nc3 {[%emt 0:00:08]} e5 {[%emt 0:00:15]} 8. e4 {[%emt 0:01:46]} a6 {[%emt 0:00:28]} 9. Qc2 {[%emt 0:05:15]} exd4 {[%emt 0:05:58]} 10. Nxd4 {[%emt 0:00:34]} Re8 {[%emt 0:03:01]} 11. Rd1 {[%emt 0:04:41]} c5 {[%emt 0:11:58]} 12. Nf3 {[%emt 0:19:04]} Nb6 {[%emt 0:07:26]} 13. e5 {[%emt 0:09:13]} Nfd7 {[%emt 0:23:03]} 14. exd6 {[%emt 0:08:37]} Nxc4 {[%emt 0:03:36]} 15. Bf4 {[%emt 0:16:48]} Ndb6 {[%emt 0:10:26]} 16. b3 {[%emt 0:09:23]} Bf5 {[%emt 0:03:34]} 17. Qc1 {[%emt 0:00:39]} Qf6 {[%emt 0:01:23]} 18. bxc4 {[%emt 0:06:06]} Qxc3 {[%emt 0:00:50]} 19. Qxc3 {[%emt 0:00:22]} Bxc3 {[%emt 0:00:05]} 20. Rac1 {[%emt 0:00:43]} Bb2 {[%emt 0:06:53]} 21. Rb1 {[%emt 0:01:29]} Bxb1 {[%emt 0:00:05]} 22. Rxb1 {[%emt 0:00:03]} Nxc4 {[%emt 0:06:31]} 23. Bf1 {[%emt 0:04:22]} Ne5 {[%emt 0:00:06]} 24. Nxe5 {[%emt 0:02:34]} Bxe5 {[%emt 0:00:05]} 25. d7 {[%emt 0:00:11]} Re7 {[%emt 0:00:11]} 26. Rxb7 {[%emt 0:01:49]} Rd8 {[%emt 0:03:19]} 27. Bxe5 {[%emt 0:02:26]} Rxe5 {[%emt 0:00:01]} 28. Bxa6 {[%emt 0:00:29]} Rd5 {[%emt 0:01:58]} 29. Bb5 {[%emt 0:00:42]} c4 {[%emt 0:00:58]} 30. Bxc4 {[%emt 0:00:24]} R5xd7 {[%emt 0:00:05]} 31. Rxd7 {[%emt 0:00:42]} Rxd7 {[%emt 0:00:47]} 32. a4 {[%emt 0:01:22]} Ra7 {[%emt 0:01:38]} 33. Bb5 {[%emt 0:00:12]} Kf8 {[%emt 0:00:20]} 34. h4 {[%emt 0:00:07]} h6 {[%emt 0:00:44]} 35. Kg2 {[%emt 0:00:11]} Ke7 {[%emt 0:00:28]} 36. Kf3 {[%emt 0:00:25]} Kd6 {[%emt 0:00:10]} 37. Ke4 {[%emt 0:00:41]} Re7+ {[%emt 0:04:28]} 38. Kf3 {[%emt 0:00:28]} Kc5 {[%emt 0:00:37]} 39. Be2 {[%emt 0:02:23]} Kb4 {[%emt 0:02:54]} 40. Bb5 {[%emt 0:00:00]} Re1 {[%emt 0:00:00]} 41. Bc6 {[%emt 0:03:44]} Kc5 {[%emt 0:06:08]} 42. Bb5 {[%emt 0:01:40]} f6 {[%emt 0:01:03]} 43. Kg4 {[%emt 0:01:38]} f5+ {[%emt 0:01:08]} 44. Kf3 {[%emt 0:01:05]} Re4 {[%emt 0:01:02]} 45. Bd7 {[%emt 0:00:35]} Kd6 {[%emt 0:00:34]} 46. Bb5 {[%emt 0:00:20]} Rb4 {[%emt 0:00:39]} 47. Be8 {[%emt 0:00:39]} g5 {[%emt 0:00:06]} 48. hxg5 {[%emt 0:00:05]} hxg5 {[%emt 0:00:04]} 49. Bb5 {[%emt 0:01:22]} Ke5 {[%emt 0:01:31]} 50. Bd7 {[%emt 0:01:28]} Rb3+ {[%emt 0:01:50]} 51. Kg2 {[%emt 0:00:28]} Ra3 {[%emt 0:00:13]} 52. Bc6 {[%emt 0:00:33]} Ra2 {[%emt 0:08:42]} 53. Kf3 {[%emt 0:04:04]} g4+ {[%emt 0:05:08]} 54. Ke3 {[%emt 0:04:52]} Ra3+ {[%emt 0:00:13]} 55. Ke2 {[%emt 0:00:20]} Kd4 {[%emt 0:03:21]} 56. Bd7 {[%emt 0:01:07]} Ra2+ {[%emt 0:00:17]} 57. Kf1 {[%emt 0:01:45]} Ke5 {[%emt 0:00:27]} 58. Kg2 {[%emt 0:00:30]} Rd2 {[%emt 0:00:54]} 59. Bc8 {[%emt 0:01:09]} Rc2 {[%emt 0:02:02]} 60. Bd7 {[%emt 0:00:38]} Ra2 {[%emt 0:00:11]} 61. Kf1 {[%emt 0:06:30]} Rd2 {[%emt 0:03:54]} 62. Bc8 {[%emt 0:02:58]} Rc2 {[%emt 0:00:14]} 63. Bd7 {[%emt 0:00:35]} Ke4 {[%emt 0:01:46]} 64. Kg2 {[%emt 0:01:01]} Rc5 {[%emt 0:00:24]} 65. Bb5 {[%emt 0:02:23]} f4 {[%emt 0:00:18]} 66. gxf4 {[%emt 0:00:24]} Kxf4 {[%emt 0:00:02]} 67. Kf1 {[%emt 0:02:03]} Rc1+ {[%emt 0:00:36]} 68. Kg2 {[%emt 0:00:07]} Rc2 {[%emt 0:01:01]} 69. Kf1 {[%emt 0:00:15]} Kf3 {[%emt 0:00:15]} 70. Kg1 {[%emt 0:00:50]} Rc1+ {[%emt 0:00:48]} 71. Bf1 {[%emt 0:00:27]} Ra1 {[%emt 0:00:11]} 72. a5 {[%emt 0:00:38]} Rxa5 {[%emt 0:00:12]} 73. Bg2+ {[%emt 0:00:13]} Kf4 {[%emt 0:00:06]} 74. Bb7 {[%emt 0:01:07]} Ra1+ {[%emt 0:02:42]} 75. Kg2 {[%emt 0:00:13]} Ra2 {[%emt 0:00:04]} 76. Kf1 {[%emt 0:00:22]} g3 {[%emt 0:01:30]} 77. fxg3+ {[%emt 0:00:06]} Kxg3 {[%emt 0:00:01]} 78. Ke1 {[%emt 0:00:18]} Kf4 {[%emt 0:00:14]} 79. Kd1 {[%emt 0:00:25]} Ke3 {[%emt 0:00:14]} 80. Kc1 {[%emt 0:00:23]} Kd3 {[%emt 0:00:29]} 81. Kb1 {[%emt 0:01:00]} Ra7 {[%emt 0:00:39]} 82. Bc8 {[%emt 0:00:47]} Kc3 {[%emt 0:00:48]} 83. Be6 {[%emt 0:00:50]} Rb7+ {[%emt 0:00:40]} 84. Ka1 {[%emt 0:00:23]} Re7 {[%emt 0:00:29]} 85. Bg8 {[%emt 0:00:36]} Re1+ {[%emt 0:00:40]} 86. Ka2 {[%emt 0:00:16]} Rg1 {[%emt 0:00:18]} 87. Be6 {[%emt 0:00:30]} Rg6 {[%emt 0:01:11]} 88. Bd5 {[%emt 0:00:55]} Rg5 {[%emt 0:00:55]} 89. Be6 {[%emt 0:00:49]} Rg2+ {[%emt 0:01:44]} 90. Kb1 {[%emt 0:00:35]} Rb2+ {[%emt 0:00:27]} 91. Ka1 {[%emt 0:00:48]} Rb6 {[%emt 0:00:43]} 92. Bd5 {[%emt 0:00:55]} Rd6 {[%emt 0:00:25]} 93. Bg8 {[%emt 0:01:24]} Rd1+ {[%emt 0:00:14]} 94. Ka2 {[%emt 0:00:08]} Rg1 {[%emt 0:00:14]} 95. Bd5 {[%emt 0:00:30]} Rg5 {[%emt 0:00:27]} 96. Bf7 {[%emt 0:00:30]} Kc2 {[%emt 0:00:33]} 97. Bb3+ {[%emt 0:00:32]} Kc3 {[%emt 0:00:29]} 98. Bf7 {[%emt 0:00:25]} Rg2+ {[%emt 0:00:59]} 99. Kb1 {[%emt 0:00:27]} Rb2+ {[%emt 0:00:44]} 100. Ka1 {[%emt 0:00:17]} Kc2 {[%emt 0:00:19]} 101. Bg6+ {[%emt 0:00:46]} Kc1 {[%emt 0:00:06]} 102. Bf7 {[%emt 0:01:28]} Rb7 {[%emt 0:00:15]} 103. Bd5 {[%emt 0:00:23]} Rb1+ {[%emt 0:00:45]} 104. Ka2 {[%emt 0:00:18]} Rb5 {[%emt 0:00:04]} 105. Bf7 {[%emt 0:00:25]} Rb7 {[%emt 0:00:33]} 106. Bd5 {[%emt 0:00:27]} Rb5 {[%emt 0:01:10]} 1/2-1/2

[Event "World Senior chT-50 2019"]
[Site "Rhodes"]
[Date "2019.04.21"]
[Round "6.40"]
[White "Wolf, Sylvia"]
[Black "Lyons, Brendan"]
[Result "1/2-1/2"]
[ECO "B01"]
[WhiteElo "2001"]
[BlackElo "1976"]
[Annotator "NA"]
[PlyCount "55"]
[EventDate "2019.04.16"]
[EventType "team-tourn"]
[EventCountry "GRE"]
[SourceTitle "playchess.com"]
[Source "ChessBase"]
[SourceQuality "1"]
[WhiteTeam "Germany"]
[BlackTeam "Ireland"]
[WhiteTeamCountry "GER"]
[BlackTeamCountry "IRL"]
[TimeControl "40/5400+30:1800+30"]

1. e4 d5 {[%emt 0:03:58]} 2. exd5 {[%emt 0:00:12]} Nf6 {[%emt 0:00:22]} 3. Bb5+ {[%emt 0:00:24]} Nbd7 {[%emt 0:01:47]} 4. Nc3 {[%emt 0:01:54]} a6 {[%emt 0:00:26]} 5. Be2 {[%emt 0:03:11]} Nb6 {[%emt 0:00:17]} 6. Nf3 {[%emt 0:00:46]} Nbxd5 {[%emt 0:00:40]} 7. Nxd5 {[%emt 0:00:36]} Nxd5 {[%emt 0:03:12]} 8. d4 {[%emt 0:01:22]} Bf5 {[%emt 0:00:49]} 9. c4 {[%emt 0:01:18]} Nf6 {[%emt 0:00:19]} 10. O-O {[%emt 0:02:42]} e6 {[%emt 0:00:58]} 11. Bf4 {[%emt 0:04:23]} Bd6 {[%emt 0:02:00]} 12. Be5 {[%emt 0:06:21]} O-O {[%emt 0:02:12]} 13. Qb3 {[%emt 0:02:51]} b6 {[%emt 0:09:33]} 14. Rfd1 {[%emt 0:04:45]} Qe7 {[%emt 0:02:51]} 15. Rac1 {[%emt 0:03:18]} Nd7 {[%emt 0:04:13]} 16. Bd3 {[%emt 0:04:20]} Bxe5 {[%emt 0:07:13]} 17. Nxe5 {[%emt 0:03:22]} Nxe5 {[%emt 0:01:47]} 18. dxe5 {[%emt 0:03:19]} Bxd3 {[%emt 0:07:02]} 19. Qxd3 {[%emt 0:05:32]} Rfd8 {[%emt 0:00:58]} 20. Qe4 {[%emt 0:00:26]} Rxd1+ {[%emt 0:01:07]} 21. Rxd1 {[%emt 0:00:02]} Rd8 {[%emt 0:00:19]} 22. Rxd8+ {[%emt 0:00:31]} Qxd8 {[%emt 0:00:06]} 23. g3 {[%emt 0:00:24]} a5 {[%emt 0:07:36]} 24. b3 {[%emt 0:11:21]} g6 {[%emt 0:05:53]} 25. Qc6 {[%emt 0:03:28]} Qd2 {[%emt 0:09:22]} 26. Qxc7 {[%emt 0:05:50]} Qe1+ {[%emt 0:00:45]} 27. Kg2 {[%emt 0:00:02]} Qe4+ {[%emt 0:00:35]} 28. Kg1 {[%emt 0:05:31]} 1/2-1/2

[Event "World Senior chT-50 2019"]
[Site "Rhodes"]
[Date "2019.04.22"]
[Round "7.1"]
[White "Soffer, Ram"]
[Black "Shabalov, Alexander"]
[Result "1/2-1/2"]
[ECO "B12"]
[WhiteElo "2486"]
[BlackElo "2510"]
[Annotator "RC"]
[PlyCount "110"]
[EventDate "2019.04.16"]
[EventType "team-tourn"]
[EventCountry "GRE"]
[SourceTitle "playchess.com"]
[Source "ChessBase"]
[SourceQuality "1"]
[WhiteTeam "Israel"]
[BlackTeam "United States"]
[WhiteTeamCountry "ISR"]
[BlackTeamCountry "USA"]
[TimeControl "40/5400+30:1800+30"]

1. e4 {[%emt 0:00:38]} c6 {[%emt 0:00:00]} 2. d4 {[%emt 0:03:04]} d5 {[%emt 0:00:00]} 3. e5 {[%emt 0:00:03]} Bf5 {[%emt 0:00:15]} 4. h4 {[%emt 0:00:06]} h6 {[%emt 0:00:32]} 5. g4 {[%emt 0:00:09]} Bd7 {[%emt 0:00:04]} 6. Nc3 {[%emt 0:01:46]} Qc8 {[%emt 0:00:26]} 7. Be2 {[%emt 0:02:05]} e6 {[%emt 0:00:05]} 8. Be3 {[%emt 0:06:00]} c5 {[%emt 0:04:46]} 9. dxc5 {[%emt 0:04:09]} Bxc5 {[%emt 0:02:53]} 10. Qd2 {[%emt 0:05:45]} Ne7 {[%emt 0:08:42]} 11. h5 {[%emt 0:02:10]} b6 {[%emt 0:09:20]} 12. f4 {[%emt 0:06:55]} Bxe3 {[%emt 0:02:21]} 13. Qxe3 {[%emt 0:00:01]} Qc5 {[%emt 0:00:09]} 14. Qd2 {[%emt 0:04:11]} b5 {[%emt 0:08:22]} 15. a3 {[%emt 0:09:22]} b4 {[%emt 0:06:01]} 16. axb4 {[%emt 0:01:13]} Qxb4 {[%emt 0:00:02]} 17. b3 {[%emt 0:04:05]} Nbc6 {[%emt 0:08:30]} 18. Nb5 {[%emt 0:01:58]} Qxd2+ {[%emt 0:02:40]} 19. Kxd2 {[%emt 0:00:23]} O-O {[%emt 0:00:03]} 20. Nf3 {[%emt 0:05:05]} f6 {[%emt 0:00:21]} 21. Ke3 {[%emt 0:01:39]} d4+ {[%emt 0:05:59]} 22. Nfxd4 {[%emt 0:06:51]} Nd5+ {[%emt 0:01:48]} 23. Kd2 {[%emt 0:00:51]} Nxf4 {[%emt 0:00:27]} 24. exf6 {[%emt 0:02:35]} Nxe2 {[%emt 0:08:32]} 25. fxg7 {[%emt 0:02:09]} Nexd4 {[%emt 0:05:08]} 26. gxf8=Q+ {[%emt 0:00:24]} Kxf8 {[%emt 0:00:09]} 27. Nxd4 {[%emt 0:01:42]} Nxd4 {[%emt 0:00:05]} 28. Ra5 {[%emt 0:07:16]} Ke7 {[%emt 0:02:46]} 29. Rha1 {[%emt 0:08:03]} Nc6 {[%emt 0:01:55]} 30. R5a4 {[%emt 0:00:16]} a5 {[%emt 0:03:33]} 31. Ke3 {[%emt 0:05:29]} Rg8 {[%emt 0:01:20]} 32. Rg1 {[%emt 0:01:38]} Rg5 {[%emt 0:00:52]} 33. c3 {[%emt 0:00:57]} Be8 {[%emt 0:05:56]} 34. Raa1 {[%emt 0:01:29]} Rc5 {[%emt 0:02:40]} 35. Rac1 {[%emt 0:03:12]} Rb5 {[%emt 0:00:24]} 36. Rb1 {[%emt 0:00:35]} Bf7 {[%emt 0:00:35]} 37. Kd2 {[%emt 0:02:15]} Bg8 {[%emt 0:00:28]} 38. c4 {[%emt 0:00:33]} Rg5 {[%emt 0:00:57]} 39. Ke3 {[%emt 0:01:14]} Bh7 {[%emt 0:00:56]} 40. Rb2 {[%emt 0:00:00]} Re5+ {[%emt 0:00:00]} 41. Kf2 {[%emt 0:01:00]} Nd4 {[%emt 0:07:46]} 42. b4 {[%emt 0:06:30]} axb4 {[%emt 0:02:57]} 43. Rxb4 {[%emt 0:00:05]} Re2+ {[%emt 0:00:44]} 44. Kf1 {[%emt 0:01:06]} Be4 {[%emt 0:00:08]} 45. Rb3 {[%emt 0:05:50]} Rc2 {[%emt 0:06:57]} 46. Re3 {[%emt 0:00:17]} Bb7 {[%emt 0:05:57]} 47. g5 {[%emt 0:01:40]} Nf5 {[%emt 0:05:12]} 48. Ra3 {[%emt 0:00:48]} Rxc4 {[%emt 0:01:38]} 49. gxh6 {[%emt 0:02:29]} Nxh6 {[%emt 0:02:33]} 50. Rg7+ {[%emt 0:01:14]} Nf7 {[%emt 0:00:27]} 51. h6 {[%emt 0:00:33]} Kf6 {[%emt 0:01:18]} 52. Rh3 {[%emt 0:01:18]} Rc1+ {[%emt 0:03:02]} 53. Kf2 {[%emt 0:00:28]} Rh1 {[%emt 0:00:18]} 54. Rxh1 {[%emt 0:04:17]} Bxh1 {[%emt 0:00:02]} 55. Rg4 {[%emt 0:00:05]} Nxh6 {[%emt 0:03:24]} 1/2-1/2

[Event "World Senior chT-50 2019"]
[Site "Rhodes"]
[Date "2019.04.22"]
[Round "7.2"]
[White "Benjamin, Joel"]
[Black "Manor, Ilan"]
[Result "1/2-1/2"]
[ECO "B22"]
[WhiteElo "2523"]
[BlackElo "2461"]
[Annotator "ChessBase"]
[PlyCount "67"]
[EventDate "2019.04.16"]
[EventType "team-tourn"]
[EventCountry "GRE"]
[SourceTitle "playchess.com"]
[Source "ChessBase"]
[SourceQuality "1"]
[WhiteTeam "United States"]
[BlackTeam "Israel"]
[WhiteTeamCountry "USA"]
[BlackTeamCountry "ISR"]
[TimeControl "40/5400+30:1800+30"]

1. e4 {[%emt 1:04:50]} c5 {[%emt 0:01:04]} 2. Nf3 {[%emt 0:00:08]} e6 {[%emt 0:00:10]} 3. c3 {[%emt 0:00:10]} Nf6 {[%emt 0:03:19]} 4. e5 {[%emt 0:00:06]} Nd5 {[%emt 0:00:06]} 5. d4 {[%emt 0:01:46]} cxd4 {[%emt 0:00:09]} 6. cxd4 {[%emt 0:00:05]} d6 {[%emt 0:01:36]} 7. Bc4 {[%emt 0:00:12]} Nb6 {[%emt 0:02:52]} 8. Bd3 {[%emt 0:00:23]} dxe5 {[%emt 0:08:09]} 9. dxe5 {[%emt 0:00:36]} Nc6 {[%emt 0:12:09]} 10. O-O {[%emt 0:02:55]} Nb4 {[%emt 0:01:38]} 11. Be4 {[%emt 0:00:34]} Qxd1 {[%emt 0:01:17]} 12. Rxd1 {[%emt 0:00:03]} N4d5 {[%emt 0:05:16]} 13. a4 {[%emt 0:12:03]} a5 {[%emt 0:00:04]} 14. Nc3 {[%emt 0:01:56]} Nxc3 {[%emt 0:04:26]} 15. bxc3 {[%emt 0:00:04]} Bc5 {[%emt 0:04:48]} 16. Nd4 {[%emt 0:16:44]} Bd7 {[%emt 0:01:42]} 17. Bxb7 {[%emt 0:03:01]} Ra7 {[%emt 0:21:32]} 18. Bf3 {[%emt 0:14:33]} Bxd4 {[%emt 0:11:00]} 19. Rxd4 {[%emt 0:13:55]} O-O {[%emt 0:00:09]} 20. Be3 {[%emt 0:01:15]} Rc7 {[%emt 0:05:34]} 21. Rg4 {[%emt 0:00:56]} h5 {[%emt 0:00:43]} 22. Bxb6 {[%emt 0:07:58]} hxg4 {[%emt 0:00:06]} 23. Bxc7 {[%emt 0:00:03]} gxf3 {[%emt 0:00:11]} 24. Bxa5 {[%emt 0:01:39]} Ra8 {[%emt 0:00:38]} 25. Bb4 {[%emt 0:05:51]} fxg2 {[%emt 0:06:49]} 26. a5 {[%emt 0:02:12]} Bc6 {[%emt 0:00:04]} 27. a6 {[%emt 0:01:12]} f5 {[%emt 0:05:54]} 28. a7 {[%emt 0:03:22]} Kf7 {[%emt 0:00:22]} 29. Bd6 {[%emt 0:02:01]} Rc8 {[%emt 0:00:27]} 30. Rb1 {[%emt 0:01:28]} Ke8 {[%emt 0:00:17]} 31. Rb4 {[%emt 0:02:31]} Kd7 {[%emt 0:01:20]} 32. c4 {[%emt 0:01:46]} g5 {[%emt 0:00:41]} 33. Rb8 {[%emt 0:02:06]} g4 {[%emt 0:00:29]} 34. Rxc8 {[%emt 0:01:32]} 1/2-1/2

[Event "World Senior chT-50 2019"]
[Site "Rhodes"]
[Date "2019.04.22"]
[Round "7.3"]
[White "Kaspi, Alexander"]
[Black "Ehlvest, Jaan"]
[Result "1/2-1/2"]
[ECO "E81"]
[WhiteElo "2452"]
[BlackElo "2521"]
[Annotator "ChessBase"]
[PlyCount "41"]
[EventDate "2019.04.16"]
[EventType "team-tourn"]
[EventCountry "GRE"]
[SourceTitle "playchess.com"]
[Source "ChessBase"]
[SourceQuality "1"]
[WhiteTeam "Israel"]
[BlackTeam "United States"]
[WhiteTeamCountry "ISR"]
[BlackTeamCountry "USA"]
[TimeControl "40/5400+30:1800+30"]

1. d4 {[%emt 0:00:00]} Nf6 {[%emt 0:00:00]} 2. c4 {[%emt 0:00:00]} g6 {[%emt 0:00:00]} 3. f3 {[%emt 0:00:03]} Bg7 {[%emt 0:00:00]} 4. e4 {[%emt 0:00:06]} d6 {[%emt 0:00:06]} 5. Nc3 {[%emt 0:00:05]} O-O {[%emt 0:00:07]} 6. Be3 {[%emt 0:00:03]} a6 {[%emt 0:00:16]} 7. Qd2 {[%emt 0:01:43]} Nbd7 {[%emt 0:00:31]} 8. Nh3 {[%emt 0:00:58]} c5 {[%emt 0:02:08]} 9. d5 {[%emt 0:00:08]} Qa5 {[%emt 0:01:31]} 10. Nf2 {[%emt 0:02:50]} b5 {[%emt 0:09:50]} 11. cxb5 {[%emt 0:03:38]} Nb6 {[%emt 0:01:56]} 12. Nfd1 {[%emt 0:11:23]} Nfd7 {[%emt 0:06:28]} 13. Bh6 {[%emt 0:12:13]} Bxh6 {[%emt 0:06:51]} 14. Qxh6 {[%emt 0:00:14]} Ne5 {[%emt 0:00:28]} 15. h4 {[%emt 0:02:37]} f6 {[%emt 0:03:33]} 16. b3 {[%emt 0:12:40]} c4 {[%emt 0:28:52]} 17. bxc4 {[%emt 0:02:11]} Nbxc4 {[%emt 0:00:58]} 18. Bxc4 {[%emt 0:01:14]} Nxc4 {[%emt 0:00:10]} 19. bxa6 {[%emt 0:00:11]} Qc5 {[%emt 0:08:05]} 20. Ne2 {[%emt 0:04:37]} Bxa6 {[%emt 0:01:27]} 21. Qc1 {[%emt 0:05:18]} 1/2-1/2

[Event "World Senior chT-50 2019"]
[Site "Rhodes"]
[Date "2019.04.22"]
[Round "7.4"]
[White "Yermolinsky, Alex"]
[Black "Gruenfeld, Yehuda"]
[Result "1-0"]
[ECO "D35"]
[WhiteElo "2508"]
[BlackElo "2428"]
[Annotator "ChessBase"]
[PlyCount "111"]
[EventDate "2019.04.16"]
[EventType "team-tourn"]
[EventCountry "GRE"]
[SourceTitle "playchess.com"]
[Source "ChessBase"]
[SourceQuality "1"]
[WhiteTeam "United States"]
[BlackTeam "Israel"]
[WhiteTeamCountry "USA"]
[BlackTeamCountry "ISR"]
[TimeControl "40/5400+30:1800+30"]

1. d4 {[%emt 0:01:23]} Nf6 {[%emt 0:00:00]} 2. c4 {[%emt 0:00:05]} e6 {[%emt 0:00:00]} 3. Nc3 {[%emt 0:01:03]} d5 {[%emt 0:02:16]} 4. cxd5 {[%emt 0:04:58]} exd5 {[%emt 0:00:34]} 5. Bg5 {[%emt 0:00:05]} c6 {[%emt 0:01:03]} 6. e3 {[%emt 0:00:05]} Bf5 {[%emt 0:02:45]} 7. Qf3 {[%emt 0:00:09]} Bg6 {[%emt 0:00:19]} 8. Bxf6 {[%emt 0:00:05]} Qxf6 {[%emt 0:00:07]} 9. Qxf6 {[%emt 0:00:09]} gxf6 {[%emt 0:00:07]} 10. Nf3 {[%emt 0:14:04]} Nd7 {[%emt 0:05:35]} 11. Be2 {[%emt 0:00:50]} Nb6 {[%emt 0:05:35]} 12. O-O {[%emt 0:00:35]} Nc8 {[%emt 0:00:27]} 13. Nh4 {[%emt 0:17:04]} Nd6 {[%emt 0:01:35]} 14. b4 {[%emt 0:00:36]} Nf5 {[%emt 0:12:23]} 15. Nxg6 {[%emt 0:04:02]} hxg6 {[%emt 0:00:07]} 16. b5 {[%emt 0:00:10]} Bd6 {[%emt 0:01:15]} 17. g3 {[%emt 0:00:46]} Rb8 {[%emt 0:05:55]} 18. Rab1 {[%emt 0:00:31]} O-O {[%emt 0:01:52]} 19. a4 {[%emt 0:02:11]} Bc7 {[%emt 0:05:05]} 20. Na2 {[%emt 0:02:13]} Ne7 {[%emt 0:08:38]} 21. Nb4 {[%emt 0:01:22]} Ba5 {[%emt 0:00:15]} 22. Nd3 {[%emt 0:05:20]} Bb6 {[%emt 0:11:43]} 23. Rb3 {[%emt 0:01:49]} Rfc8 {[%emt 0:07:25]} 24. Bf3 {[%emt 0:02:09]} Kg7 {[%emt 0:03:19]} 25. h4 {[%emt 0:05:58]} Bc7 {[%emt 0:05:44]} 26. Rfb1 {[%emt 0:05:28]} Bd6 {[%emt 0:01:07]} 27. Kg2 {[%emt 0:00:31]} c5 {[%emt 0:10:03]} 28. dxc5 {[%emt 0:00:05]} Bxc5 {[%emt 0:00:04]} 29. Rd1 {[%emt 0:00:44]} Bd6 {[%emt 0:00:45]} 30. Nb4 {[%emt 0:00:18]} Bxb4 {[%emt 0:00:46]} 31. Rxb4 {[%emt 0:00:51]} Rc5 {[%emt 0:00:06]} 32. Rbd4 {[%emt 0:00:43]} Rd8 {[%emt 0:00:16]} 33. e4 {[%emt 0:02:46]} Re8 {[%emt 0:01:05]} 34. g4 {[%emt 0:03:01]} dxe4 {[%emt 0:04:20]} 35. Rxe4 {[%emt 0:00:20]} Rc7 {[%emt 0:00:02]} 36. Rde1 {[%emt 0:05:24]} f5 {[%emt 0:01:10]} 37. gxf5 {[%emt 0:00:06]} gxf5 {[%emt 0:00:03]} 38. R4e2 {[%emt 0:01:57]} Rg8 {[%emt 0:01:50]} 39. h5 {[%emt 0:04:13]} Nc8 {[%emt 0:01:53]} 40. Rd2 {[%emt 0:00:00]} Kf6+ {[%emt 0:00:00]} 41. Kf1 {[%emt 0:04:55]} b6 {[%emt 0:03:51]} 42. Red1 {[%emt 0:03:55]} Rc3 {[%emt 0:02:28]} 43. Rd3 {[%emt 0:00:39]} Rxd3 {[%emt 0:00:43]} 44. Rxd3 {[%emt 0:00:05]} Ke7 {[%emt 0:00:09]} 45. Rc3 {[%emt 0:04:20]} Kd8 {[%emt 0:00:18]} 46. Ke2 {[%emt 0:01:37]} Nd6 {[%emt 0:00:19]} 47. Ke3 {[%emt 0:02:06]} Kd7 {[%emt 0:03:39]} 48. Kf4 {[%emt 0:00:20]} Rh8 {[%emt 0:02:08]} 49. Kg5 {[%emt 0:02:28]} Ne4+ {[%emt 0:01:41]} 50. Bxe4 {[%emt 0:00:25]} fxe4 {[%emt 0:00:09]} 51. Rh3 {[%emt 0:04:59]} Ke6 {[%emt 0:05:46]} 52. h6 {[%emt 0:00:19]} f6+ {[%emt 0:00:18]} 53. Kf4 {[%emt 0:00:29]} Rh7 {[%emt 0:00:37]} 54. Kxe4 {[%emt 0:00:22]} f5+ {[%emt 0:00:09]} 55. Kf4 {[%emt 0:01:08]} Kf6 {[%emt 0:00:15]} 56. Rc3 {[%emt 0:00:11]} 1-0

[Event "World Senior chT-50 2019"]
[Site "Rhodes"]
[Date "2019.04.22"]
[Round "7.5"]
[White "Godena, Michele"]
[Black "Speelman, Jon S"]
[Result "1/2-1/2"]
[ECO "C07"]
[WhiteElo "2459"]
[BlackElo "2509"]
[Annotator "ChessBase"]
[PlyCount "66"]
[EventDate "2019.04.16"]
[EventType "team-tourn"]
[EventCountry "GRE"]
[SourceTitle "playchess.com"]
[Source "ChessBase"]
[SourceQuality "1"]
[WhiteTeam "Italy"]
[BlackTeam "England"]
[WhiteTeamCountry "ITA"]
[BlackTeamCountry "ENG"]
[TimeControl "40/5400+30:1800+30"]

1. e4 {[%emt 0:00:00]} e6 {[%emt 0:00:00]} 2. d4 {[%emt 0:00:00]} d5 {[%emt 0:00:00]} 3. Nd2 {[%emt 0:00:00]} c5 {[%emt 0:00:00]} 4. Ngf3 {[%emt 0:03:07]} cxd4 {[%emt 0:00:09]} 5. Nxd4 {[%emt 0:01:20]} Nc6 {[%emt 0:00:06]} 6. Bb5 {[%emt 0:00:18]} Nge7 {[%emt 0:00:06]} 7. O-O {[%emt 0:02:12]} Bd7 {[%emt 0:00:09]} 8. Nxc6 {[%emt 0:15:08]} Bxc6 {[%emt 0:00:07]} 9. Qe2 {[%emt 0:01:09]} Qd7 {[%emt 0:08:30]} 10. Bxc6 {[%emt 0:02:40]} Qxc6 {[%emt 0:00:08]} 11. exd5 {[%emt 0:01:38]} Nxd5 {[%emt 0:00:08]} 12. Nf3 {[%emt 0:00:27]} Bc5 {[%emt 0:09:17]} 13. Ne5 {[%emt 0:01:24]} Qb6 {[%emt 0:03:58]} 14. Qg4 {[%emt 0:02:39]} Bd4 {[%emt 0:01:40]} 15. Nc4 {[%emt 0:12:24]} Qc5 {[%emt 0:02:40]} 16. Nd6+ {[%emt 0:04:05]} Ke7 {[%emt 0:02:28]} 17. Nxb7 {[%emt 0:22:23]} Qb4 {[%emt 0:00:24]} 18. c4 {[%emt 0:16:43]} Qxc4 {[%emt 0:04:55]} 19. Qh4+ {[%emt 0:01:07]} Kf8 {[%emt 0:02:21]} 20. b3 {[%emt 0:04:12]} Qb4 {[%emt 0:02:11]} 21. Ba3 {[%emt 0:03:28]} Qxa3 {[%emt 0:00:38]} 22. Qxd4 {[%emt 0:00:01]} Qb4 {[%emt 0:00:08]} 23. Qxb4+ {[%emt 0:01:15]} Nxb4 {[%emt 0:00:06]} 24. Rac1 {[%emt 0:00:48]} Nd5 {[%emt 0:00:06]} 25. Na5 {[%emt 0:01:54]} Ke7 {[%emt 0:00:29]} 26. Rc4 {[%emt 0:00:39]} Kd7 {[%emt 0:01:22]} 27. Rfc1 {[%emt 0:00:11]} Rhb8 {[%emt 0:02:03]} 28. Nc6 {[%emt 0:00:59]} Rb6 {[%emt 0:00:17]} 29. Ne5+ {[%emt 0:00:22]} Ke7 {[%emt 0:00:04]} 30. Nd3 {[%emt 0:00:53]} a5 {[%emt 0:03:40]} 31. Nf4 {[%emt 0:00:28]} Nxf4 {[%emt 0:02:54]} 32. Rxf4 {[%emt 0:00:00]} Ra7 {[%emt 0:00:12]} 33. Kf1 {[%emt 0:00:47]} Rb5 {[%emt 0:01:33]} 1/2-1/2